Cogmind - Beta 15 @@@ ROGUE MODE // 2025.07.31 @ 11:43:01 Player: satan5 Result: Destroyed by P4-WEX(R) with Subdweller Machine Gun Performance ------------- Evolutions (0) 0 Regions Visited (3) 600 Robots Destroyed (41) 205 Value Destroyed (1205) 1205 Prototype IDs (11) 220 Alien Tech Used (0) 0 Bonus (0) 0 TOTAL SCORE: 2230 Bonus ------- None Cogmind --------- Core Integrity 0/250 Matter 300/300 Energy 196/200 System Corruption 0% Temperature Cool (0) Movement Treading (160) Location -10/Subcaves Parts ------- > --- POWER (1) -------- Subdweller Power Source > --- PROPULSION (2) --- Spiked Treads Spiked Treads > --- UTILITY (2) ------ Large Storage Unit > --- WEAPON (2) ------- Subdweller Laser Subdweller Machine Gun > --- INVENTORY (15) --- Disposable Heat Sink Riot Gun Subdweller Laser Subdweller Laser Subdweller Laser Subdweller Beam Cannon Powered Cannon Assault Rifle Assault Rifle Rocket Launcher Mace Makeshift Hammer Makeshift Sword Peak State ------------ > --- POWER ------------ Light Nuclear Core > --- PROPULSION ------- Spiked Treads Subdweller Monowheel > --- UTILITY ---------- Large Storage Unit Seismic Detector > --- WEAPON ----------- Subdweller Laser Subdweller Laser > --- INVENTORY -------- Subdweller Power Source Subdweller Monowheel Spread Laser Spread Laser Subdweller Laser Subdweller Laser Subdweller Beam Cannon Subdweller Beam Cannon Assault Rifle Assault Rifle Subdweller Machine Gun Rocket Launcher Mace Ripper [Rating: 15] Favorites ----------- Power Light Ion Engine Engine Light Ion Engine Power Core Light Nuclear Core Propulsion Light Treads Treads Light Treads Wheel Subdweller Monowheel Utility Large Storage Unit Device Seismic Detector Storage Large Storage Unit Protection Medium Armor Plating Weapon Spread Laser Energy Gun Spread Laser Energy Cannon Subdweller Beam Cannon Ballistic Gun Subdweller Machine Gun Build | -11 -10 -10 -10 ------- Run | Yrd Mat Min Sub Slots Evolved . | . . . . Power . | . . . . Propulsion . | . . . . Utility . | . . . . Weapon . | . . . . Parts Attached 30 | 7 4 2 17 Power 4 | 1 . . 3 Engine 3 | 1 . . 2 Core 1 | . . . 1 Reactor . | . . . . Propulsion 8 | 2 . . 6 Treads 6 | 2 . . 4 Leg . | . . . . Wheel 2 | . . . 2 Hover . | . . . . Flight . | . . . . Utility 5 | 2 2 1 . Device 1 | 1 . . . Storage 2 | 1 1 . . Processor . | . . . . Hackware . | . . . . Protection 2 | . 1 1 . Artifact . | . . . . Weapon 13 | 2 2 1 8 Energy Gun 7 | . 2 1 4 Energy Cannon 2 | . . . 2 Ballistic Gun 4 | 2 . . 2 Ballistic Cannon . | . . . . Launcher . | . . . . Special Weapon . | . . . . Impact Weapon . | . . . . Slashing Weapon . | . . . . Piercing Weapon . | . . . . Special Melee Weapon . | . . . . Unidentified Prototypes . | . . . . Parts Lost 8 | . . 2 6 Power . | . . . . Propulsion 2 | . . . 2 Utility 3 | . . 1 2 Weapon 3 | . . 1 2 Highest Loss Streak 2 | . . 1 2 To Critical Strikes 1 | . . . 1 Average Backups 11 | 1 7 9 12 Power 1 | . . 1 . Propulsion . | . . 1 . Utility 1 | . 1 1 . Weapon 8 | . 5 5 10 Tool/Special . | . . . . Unused Backups 13 | . 1 . 12 Power 1 | . 1 . . Propulsion . | . . . . Utility 1 | . . . 1 Weapon 11 | . . . 11 Tool/Special . | . . . . Average Slot Usage (%) 91 | . 100 99 86 Engine 11 | . 14 14 10 Core 2 | . . . 3 Treads 22 | . 28 28 18 Wheel 5 | . . . 8 Device 1 | . 2 . 1 Storage 14 | . 14 14 14 Protection 5 | . 11 13 . Energy Gun 19 | . 19 28 15 Energy Cannon 5 | . . . 9 Ballistic Gun 2 | . 8 . 2 Peak Build Rating 15 | 7 11 11 15 Average Rating 12 | 5 10 10 13 On Entrance 7 | . 7 11 11 Naked Turns . | . . . . Heaviest Build 41 | 13 36 36 41 Greatest Support 40 | 40 40 40 40 Greatest Overweight (x) 2 | . . . 2 Average Overweight (x) . | . . . 1 Largest Inventory Capacity 15 | 8 15 15 15 Average Capacity 14 | 7 11 15 15 Most Carried 15 | 3 9 11 15 Average Carried 11 | 1 7 9 13 Final Capacity 15 | 8 15 15 15 Final Carried 14 | 2 9 11 14 Class Distribution -------------------- 98% | Mutant Dominant Class ---------------- Mutant | -10/Materials Mutant | -10/Mines Mutant | -10/Subcaves Resources | -11 -10 -10 -10 ----------- Run | Yrd Mat Min Sub Matter Collected 590 | 161 115 78 236 Remotely . | . . . . Salvage Created 1127 | 24 183 183 737 Parts 74 | 3 18 14 39 Haulers Intercepted . | . . . . Recyclers Shooed . | . . . . Parts Field Recycled . | . . . . Retrieved Matter . | . . . . Parts Self-Destructed 22 | . . . 22 Prevented . | . . . . Kills | -11 -10 -10 -10 ------- Run | Yrd Mat Min Sub Combat Hostiles Destroyed 38 | . 7 7 24 Guns 30 | . 7 7 16 Cannons 7 | . . . 7 Classes Destroyed 6 | 1 3 1 1 Tunneler 1 | 1 . . . Watcher 2 | . 2 . . Swarmer 12 | . 3 3 6 Grunt 8 | . 4 2 2 Sentry 3 | . . 2 1 Subdweller 15 | . . . 15 Best Kill Streak 6 | 1 6 3 4 Combat Bots Only 6 | . 6 3 4 Max Kills in Single Turn 2 | 1 1 2 1 Gunslinging . | . . . . Exploded . | . . . . Melee . | . . . . Uniques/NPCs Destroyed . | . . . . Combat | -11 -10 -10 -10 -------- Run | Yrd Mat Min Sub Hostile Shots Fired 143 | . 14 38 91 Missed 42 | . 4 8 30 Hits 101 | . 10 30 61 Projectile 101 | . 10 30 61 AOE 8 | . . 8 . Critical Strikes 4 | . . 1 3 Damage Taken 1705 | . 115 530 1060 Core 257 | . 17 55 185 Absorbed by Shields . | . . . . Core Remaining (%) 100 | 100 . . . Volleys Fired 113 | 4 12 15 82 Largest 2 | 2 2 2 2 Hottest 160 | 40 130 130 160 Shots Fired 220 | 8 24 30 158 Gun 183 | 8 24 30 121 Cannon 37 | . . . 37 Launcher . | . . . . Special . | . . . . Kinetic 31 | 8 . . 23 Thermal 189 | . 24 30 135 Explosive . | . . . . Electromagnetic . | . . . . Robot Hit Streak 28 | 4 7 17 28 Robot Miss Streak 7 | 1 4 7 5 Penetration Max . | . . . . Secondary Targets 3 | . . 2 1 Max Gunslinging Chain 1 | . . 1 1 Shots Hit Robots 154 | 6 19 25 104 Core Hits 149 | 1 32 40 76 Critical Kills 1 | . . . 1 Critical Parts Destroyed . | . . . . Critical Strikes 1 | . . . 1 Meltdown 1 | . . . 1 Melee Attacks . | . . . . Impact . | . . . . Slashing . | . . . . Piercing . | . . . . Sneak Attacks . | . . . . Combat Hostiles . | . . . . Follow-up Attacks . | . . . . Damage Inflicted 2712 | 76 246 331 2059 Guns 2354 | 76 246 331 1701 Cannons 358 | . . . 358 Explosions . | . . . . Melee . | . . . . Ramming . | . . . . Kinetic 417 | 76 . . 341 Thermal 2295 | . 246 331 1718 Explosive . | . . . . Electromagnetic . | . . . . Impact . | . . . . Slashing . | . . . . Piercing . | . . . . Highest Corruption . | . . . . Average Corruption . | . . . . Corruption Purged . | . . . . Corruption Blocked . | . . . . Overload Shots . | . . . . Overflow Damage . | . . . . Projectiles . | . . . . Explosions . | . . . . Melee . | . . . . Knockbacks . | . . . . Impact . | . . . . Kinetic . | . . . . Secondary . | . . . . Self-Inflicted Damage . | . . . . Shots . | . . . . Rammed . | . . . . Targets Rammed . | . . . . Kicked . | . . . . Crushed . | . . . . Highest Temperature 444 | . 357 444 168 Average Temperature 100 | . 167 158 39 Received Heat Transfer 303 | . 42 108 153 Effects 4 | . 1 3 . Energy Bleed 2 | . 1 1 . Interference 2 | . . 2 . Siege Activations . | . . . . Martial Activations . | . . . . Shielding Activations . | . . . . Robots Disrupted . | . . . . Combat Hostiles . | . . . . Robots Corrupted . | . . . . Combat Hostiles . | . . . . Parts Fried . | . . . . Impact Corruptions . | . . . . Robots Melted 1 | . . . 1 Combat Hostiles 1 | . . . 1 Parts Melted 4 | . . . 4 Heat Transferred 2881 | . 290 425 2166 Parts Sabotaged . | . . . . Parts Stolen . | . . . . Parts Stripped . | . . . . Power Chain Reactions . | . . . . Alert | -11 -10 -10 -10 ------- Run | Yrd Mat Min Sub Maximum Alert Level . | . . . . Low Security (%) 100 | 100 100 100 . Level 1 . | . . . . Level 2 . | . . . . Level 3 . | . . . . Level 4 . | . . . . Level 5 . | . . . . High Security . | . . . . Max Security . | . . . . Peak Influence 185 | 5 185 60 . Initial 53 | . . 53 . Average 22 | . 56 11 . Influence Increases 629 | 5 244 160 220 Destroy 0b10 Robot/C 460 | . 140 140 180 Destroy 0b10 Robot/NC 15 | 5 10 . . Destroy Leader 64 | . 34 20 10 Lose Combat Pursuer 90 | . 60 . 30 Influence Decreases 629 | 5 107 297 220 Entered New Map 84 | . . 84 . Time Decay 502 | 5 107 190 200 Lost Part 30 | . . 10 20 Lost Ally 13 | . . 13 . Squads Dispatched 2 | . 1 1 . Investigation 1 | . 1 . . Extermination . | . . . . Reinforcement . | . . . . Assault 1 | . . 1 . Garrison . | . . . . Intercept . | . . . . Searches Triggered . | . . . . Construction Impeded . | . . . . Haulers Reinforced . | . . . . Active Scanning Responses . | . . . . Cargo Convoy Interrupts . | . . . . Stealth | -11 -10 -10 -10 --------- Run | Yrd Mat Min Sub Distress Signals 1 | . 1 . . Communications Jammed . | . . . . Distress Signals . | . . . . Times Spotted 54 | . 13 15 26 Peak Tracking Total 18 | . 5 18 6 Tactical Retreats 5 | . 4 . 1 Traps | -11 -10 -10 -10 ------- Run | Yrd Mat Min Sub Traps Triggered 1 | . . . 1 Indirectly . | . . . . Trap Hack Attempts . | . . . . Triggered . | . . . . Disarmed . | . . . . Reprogrammed . | . . . . Reused . | . . . . Traps Extracted . | . . . . Installed . | . . . . Triggered . | . . . . Machines | -11 -10 -10 -10 ---------- Run | Yrd Mat Min Sub Machines Disabled 1 | . . . 1 Max in Single Turn 1 | . . . 1 Machines Repaired . | . . . . Machines Dismantled . | . . . . Machines Sabotaged . | . . . . Overloaded Fab Kills . | . . . . Hacking | -11 -10 -10 -10 --------- Run | Yrd Mat Min Sub Machines Accessed 8 | . 3 1 4 Terminals 3 | . 2 1 . Fabricators . | . . . . Repair Stations . | . . . . Recycling Units 1 | . 1 . . Scanalyzers . | . . . . Garrison Access . | . . . . Total Hacks 30 | . 10 3 17 Successful 21 | . 3 1 17 Failed 8 | . 7 1 . Catastrophic 1 | . 1 . . Database Lockouts 1 | . . 1 . Manual 7 | . 4 3 . Terminals 8 | . 5 3 . Fabricators . | . . . . Repair Stations . | . . . . Recycling Units 5 | . 5 . . Scanalyzers . | . . . . Garrison Access . | . . . . Terminal Hacks 19 | . 1 1 17 Record 14 | . . . 14 Robot Analysis 2 | . 1 1 . Open Door 1 | . . . 1 Proto ID Catalog 1 | . . . 1 Release Object 1 | . . . 1 Fabricator Hacks . | . . . . Repair Station Hacks . | . . . . Recycling Unit Hacks . | . . . . Scanalyzer . | . . . . Garrison Access Hacks . | . . . . Unauthorized Hacks 2 | . 2 . . Terminals 2 | . 2 . . Botnet 1 | . 1 . . Operators 1 | . 1 . . Fabricators . | . . . . Repair Stations . | . . . . Recycling Units . | . . . . Scanalyzers . | . . . . Garrison Access . | . . . . Data Cores Recovered . | . . . . Used . | . . . . Hacking Detections 4 | . 3 1 . Full Trace Events 1 | . 1 . . Feedback Events . | . . . . Feedback Blocked . | . . . . Robot Schematics Acquired . | . . . . Robots Built . | . . . . Authchips . | . . . . Time . | . . . . Total Robot Build Rating . | . . . . Part Schematics Acquired . | . . . . Parts Built . | . . . . Authchips . | . . . . Time . | . . . . Total Part Build Rating . | . . . . Parts Repaired . | . . . . Time . | . . . . Parts Recycled . | . . . . Recycled Matter . | . . . . Retrieved Matter . | . . . . Retrieved Components . | . . . . Parts Scanalyzed . | . . . . Part Schematics Acquired . | . . . . Parts Damaged . | . . . . Bothacking | -11 -10 -10 -10 ------------ Run | Yrd Mat Min Sub Used RIF Installer . | . . . . Robots Hacked . | . . . . Non-combat . | . . . . Combat . | . . . . Robot Hacks Applied . | . . . . Relay Couplers Released . | . . . . Fabnet Peak Effective % . | . . . . Robots Rewired . | . . . . Allies Hacked . | . . . . Hacks Repelled . | . . . . Allies | -11 -10 -10 -10 -------- Run | Yrd Mat Min Sub Total Allies 1 | . . 1 . Largest Group 1 | . . 1 . Highest-Rated Group 31 | . . 31 . Highest-Rated Ally 31 | . . 31 . Total Orders . | . . . . Ally Attacks 3 | . . 3 . Total Damage 61 | . . 61 . Kills . | . . . . Allies Corrupted . | . . . . Allies Melted . | . . . . Intel | -11 -10 -10 -10 ------- Run | Yrd Mat Min Sub Active Infowar (turns) 416 | 27 77 . 312 Seismic 416 | 27 77 . 312 Robot Analysis Total 2 | . 1 1 . Derelict Logs Recovered 3 | . . 2 1 Drone Launches . | . . . . Drone Recoveries . | . . . . Exploration | -11 -10 -10 -10 ------------- Run | Yrd Mat Min Sub Turns Passed 4065 | 73 418 1102 2472 Spaces Moved 2350 | 32 204 584 1530 Core 2 | 2 . . . Treads 1300 | 30 204 584 482 Legs . | . . . . Wheels 1048 | . . . 1048 Hover . | . . . . Flight . | . . . . Fastest Speed 50 | 50 160 160 120 Average Speed 146 | 153 160 160 139 Slowest Speed 240 | 160 160 160 240 Overloaded Moves . | . . . . Propulsion Burnouts . | . . . . Robots Hopped . | . . . . Potential Cave-ins . | . . . . Cave-ins Triggered . | . . . . Exploration Rate (%) 52 | 4 31 93 81 Regions Visited 3 Branch Regions 2 Pre-discovered Areas 4 | . . 1 3 Known Exits Taken . | . . . . Unknown Exits Taken 3 | 1 1 1 . Scrap Searched 18 | . . 1 17 Spaces Dug . | . . . . Terrain Destroyed 3 | . . . 3 Melee . | . . . . Projectile 3 | . . . 3 AOE . | . . . . Terrain Rammed . | . . . . Walls Destroyed . | . . . . Machines Disabled . | . . . . Actions | -11 -10 -10 -10 --------- Run | Yrd Mat Min Sub Total 2742 | 45 272 722 1703 Wait 199 | . 41 118 40 Move 2347 | 31 203 583 1530 Hop . | . . . . Pick Up 32 | 3 8 4 17 Fast Attach 8 | 6 . . 2 Attach 9 | 1 1 2 5 Detach 1 | . 1 . . Swap 16 | . 4 . 12 Drop 17 | . 2 . 15 Fire 113 | 4 12 15 82 Melee . | . . . . Ram . | . . . . Kick . | . . . . Crush . | . . . . Escape Stasis . | . . . . Rewire . | . . . . Trap . | . . . . Miscellaneous . | . . . . Route ------- -11/Scrapyard -10/Materials (discovered 2 exits: [*Mat] / *Min) -10/Mines (discovered 4 exits: [*Mat x2] / [*Exi] / *Sub) -10/Subcaves History --------- Turn | Location | Event 42 | -11/Scrapyard | Discovered new exit (range 15) 74 | -11/Scrapyard | Entered Materials 226 | -10/Materials | Discovered new exit (range 7) 320 | -10/Materials | Build established: Mutant 425 | -10/Materials | Discovered new exit (range 16) 492 | -10/Materials | Entered Mines 499 | -10/Mines | Central database locked down 533 | -10/Mines | Met a Derelict testing a Signal Generator 665 | -10/Mines | Assembled infested the area 702 | -10/Mines | Learned location of Storage (-7) 846 | -10/Mines | Discovered new exit (range 4) 889 | -10/Mines | Discovered new exit (range 13) 915 | -10/Mines | Learned Materials terminal intel 992 | -10/Mines | Learned 2 Materials zone layouts 1086 | -10/Mines | Discovered new exit (range 5) 1128 | -10/Mines | Received a Rocket Launcher from a helpful Derelict 1588 | -10/Mines | Discovered new exit (range 6) 1594 | -10/Mines | Entered Subcaves 1595 | -10/Subcaves | Approached by a straggling Scientist 1920 | -10/Subcaves | Shifting Twisted Machinery released Ripper 2109 | -10/Subcaves | Shifting Twisted Machinery released Sub. Laser 2252 | -10/Subcaves | Core integrity fell below 50% 2519 | -10/Subcaves | Shifting Twisted Machinery released Sub. Beam Cannon 2520 | -10/Subcaves | Shifting Twisted Machinery released Slug Cannon 2890 | -10/Subcaves | Visited Clippyterm 2894 | -10/Subcaves | Learned location of Deep Caves (-6) 2894 | -10/Subcaves | Learned Factory emergency access door positions 3071 | -10/Subcaves | Disturbed a concealed Subdweller 3117 | -10/Subcaves | Learned location of Mines (-10) 3147 | -10/Subcaves | Core integrity fell below 20% 3513 | -10/Subcaves | Visited 4L-MR0's lab 3527 | -10/Subcaves | Found Powered Cannon 3667 | -10/Subcaves | Learned location of Zion (-6) 3667 | -10/Subcaves | Met a Zionite searching for "candidates" 3690 | -10/Subcaves | A swath of the cavern ceiling suddenly collapsed 3752 | -10/Subcaves | Disturbed a concealed Subdweller 3880 | -10/Subcaves | Shifting Twisted Machinery released Riot Gun 4066 | -10/Subcaves | Destroyed by P4-WEX(R) with Subdweller Machine Gun Last Messages --------------- 03777_ Acquired 10 matter. 03777_ Searching scrap... 03777_ Found Sub. Laser. 03777_ Found 45 Matter. 03780_ Searching scrap... 03780_ Found Battle Cannon. 03780_ Found Sub. Monowheel. 03780_ Found 51 Matter. 03781_ Searching scrap... 03781_ Found Battle Cannon. 03781_ Found 55 Matter. 03789_ Acquired Sub. Beam Cannon. 03795_ Acquired Sub. Laser. Riot Gun falls loose from the Twisted Machinery. 03892_ Acquired Riot Gun. 03907_ YK-A56(u) tweaks Twisted Machinery. 03918_ ZS-WPQ(u) builds Twisted Machinery. 04054_ FK-ZAN(R) destroyed. 04061_ Acquired 4 matter. 04063_ Acquired 2 matter. Map ----- +----------------------------------------------------+ | ???####??????????????????????????????????????????? | | ?????????????????????????????????????????????????? | | ?????????????????????????????????????????????????? | | ?????????????????????????????????????????????????? | | ?????????????????????????????????????????????????? | | ?????????????????????????????????????????????????? | | ????????????????????????????????????????????????## | | ????????????????????????????????????????? ????### | | ????????????????????????????????????????? ???## | | ????????????????????????????????????????? ???# # | | ????????????????????????????????????????? ???# # | | ????????????????????????????????????????? ##?# # | | ????????????????????????????????????????? ??## ## | | ????????????????????????????????????????? ???#### | | ????????????????????????????????????????# ?????# | | ????????????????????????????????????????# ?????# | | ???????????????????????????????????????? ##????# | | ???????????????????????????????####?????# #????# | | ??????????????????????????????# R ###???# #????# | | ?????????????????????????????## ## ##### #????# | | ????????????????????????????## ### # ####?# | | ???????????????????????????## ###?## # #?# | | ??????????????????????????## ##????# ## ### | | ?????????????????????###?## #????# ## # # ## | | ????????????????????## ###&###????##?####### | | ????????????????????#%#!&@ #???????????????#### | | ???????????????????# #######?????????#####?#### | | ??????????????????# #????????????????# ### # | | ?????????????????# #?????????????????### | | ???????####?????# #????????????????????# | | ???????# #?#### ?????????????????????#### | | ??????## ? # #?????????????????????????### ## | | ?????## ?? #???###?????????????????????# ## | | ?????# ?## #????#"##?????####??????????? #### | | ?????# #?# #????# #?????# #?????????### #??? | | ?????# ### #???##" #???## ## ########## #??? | | ?????# # ###### ######&#### ## # ## ##?? | | ?????# &%% ## # &##%!# # ### | | ####### &&#""" # """ %!%## # | | ## ### #### """"" &##### ## # ## # | | #??# ##### =##???############# # | | ##?#" #???####????????????????# | | ###### ##?#"""" #??????????????????????# ##### | | ?????###??# """"##??????????????????????# ##???? | | ??????????########???????????????????????####????? | | ?????????????????????????????????????????????????? | | ?????????????????????????????????????????????????? | | ?????????????????????????????????????????????????? | | ?????????????????????????????????????????????????? | | ?????????????????????????????????????????????????? | +----------------------------------------------------+ Best States ------------- Heat Dissipation 25 Energy Generation 15 Energy Capacity 265 Matter Stores 300 Matter Capacity 300 Sight Range 16 Terrain Scan Density 10 Armor Coverage 225 Evasion (%) 40 Recoil Reduction 2 Item Schematics ----------------- None Robot Schematics ------------------ None Fabricated ------------ Nothing Repaired ---------- Nothing Alien Tech Used ----------------- None Achievements -------------- None Challenges ------------ None Game ------ Seed GreatRapidCompanion Manual? 0 Play Time 00:22:57 Cumulative 334.0 hours Start 2025.07.31 @ 11:22:25 End 2025.07.31 @ 11:43:01 Sessions 1 Manual Loads 0 Difficulty Rogue Special Mode None Game No. 162 Rogue 148 Adventurer 14 Explorer 0 Win Type - Total 18 Types 15/0/1/1/0/0/0/0/1/0 Lore% 65 Gallery% 73 Achievement% 68 Wizard Run 0 Options --------- Layout 1 ASCII 0 Keyboard 0 Movement Arrows Keybinds 0 Fullscreen 1 Font 24/Smallcaps Map View 50x35 Zoom Use 0% Tactical HUD 1 Map Filters NONE Filters NONE Steam 1 RUN: 5ca9dbaa-631f-448b-a7e9-3a19aca9b0ee